bitfinex/quotes_SOLUSD_20241113
["timestamp","ask_amount","ask_price","bid_price","bid_amount"]
[1731475632097,22.53100446,206.15,206.11,6.0817]
[1731475632275,22.53100446,206.15,206.08,3.8818]
[1731475632784,14.11015652,206.12,206.07,9.7053]
[1731475633172,14.11015652,206.12,206.03,14.11015652]
[1731475633370,14.11015652,206.12,206.03,27.70015652]
[1731475633601,14.11015652,206.1,206.03,9.7071]
[1731475633796,14.11015652,206.1,206.03,23.81725652]
[1731475633970,14.11015652,206.16,206.03,13.59]
[1731475634172,14.11015652,206.16,206.07,14.11015652]
[1731475634883,23.776884,206.16,206.07,22.56949404]
[1731475635197,4.8508,206.15,206.07,338.45149404]
[1731475635405,27.42029404,206.15,206.07,338.45149404]
[1731475635580,4.8508,206.15,206.07,348.15689404]
[1731475635893,22.56949404,206.17,206.09,22.56949404]
[1731475636103,22.56949404,206.19,206.11,22.56949404]
[1731475636305,22.56949404,206.21,206.13,22.56949404]
[1731475636678,22.56949404,206.21,206.11,22.56949404]
[1731475637008,22.56949404,206.19,206.09,22.56949404]
[1731475637300,4.8501,206.18,206.11,22.56949404]
[1731475637796,46.34637804,206.17,206.09,22.56949404]
[1731475638297,22.56949404,206.17,206.09,22.56949404]
[1731475638884,22.56949404,206.15,206.07,32.27489404]
[1731475639191,4.8515,206.12,206.06,6.3283]
[1731475639377,22.56949404,206.13,206.06,6.3283]
[1731475639580,4.8512,206.14,206.06,10.2106]
[1731475639991,4.8512,206.14,206.07,22.56949404]
[1731475640225,4.8508,206.16,206.09,22.56949404]
[1731475641117,46.34637804,206.1,206.02,28.57589404]
[1731475641405,22.56949404,206.1,206.02,42.16659404]
[1731475641888,22.56949404,206.12,206.02,42.16659404]
[1731475642208,22.56949404,206.12,206.02,354.16659404]
[1731475642588,22.56949404,206.08,206.02,6.0064]
[1731475642800,22.56949404,206.08,205.98,9.7094]
[1731475642801,22.56949404,206.08,205.98,38.28529404]
[1731475643280,4.8527,206.07,205.98,42.16899404]
[1731475643910,22.56949404,206.06,205.98,15.7158]
[1731475644084,22.56949404,206.04,205.98,15.7158]
[1731475645609,22.56949404,206.04,205.98,327.7158]
[1731475645786,27.42309404,206.04,205.98,327.7158]
[1731475646910,22.56949404,206.06,205.98,327.7158]
[1731475647291,22.56949404,206.06,205.98,354.16909404]
[1731475647478,22.56949404,206.08,205.98,354.16909404]
[1731475647682,4.8522,206.09,206.0,22.56949404]
[1731475647882,0.84255353,206.11,206.04,22.56949404]
[1731475648484,0.84255353,206.11,206.06,22.56949404]
[1731475649105,0.84255353,206.11,206.05,3.8825]
[1731475649683,22.56949404,206.18,206.08,22.56949404]
[1731475649883,22.56949404,206.22,206.12,22.56949404]
[1731475650099,0.84202875,206.2,206.16,22.56949404]
[1731475650299,4.8487,206.25,206.16,22.56949404]
[1731475650503,22.56949404,206.24,206.16,22.56949404]
[1731475650813,22.56949404,206.24,206.16,334.56949404]
[1731475651012,23.41139113,206.26,206.18,22.56949404]
[1731475651592,22.56949404,206.24,206.16,32.27069404]
[1731475651783,22.56949404,206.2,206.12,26.45059404]
[1731475651998,22.56949404,206.18,206.1,6.1604]
[1731475653098,27.41969404,206.18,206.1,6.1604]
[1731475653302,22.56949404,206.16,206.1,6.1604]
[1731475653991,22.56949404,206.14,206.05,36.15809404]
[1731475654185,22.56949404,206.14,206.05,348.15809404]
[1731475654609,22.56949404,206.12,206.05,312.0]
[1731475655289,4.8517,206.11,206.05,312.0]
[1731475655803,22.56949404,206.1,206.04,6.2361]
[1731475656010,22.56949404,206.08,206.0,9.7083]
[1731475657217,22.56949404,206.02,205.89,22.7724]
[1731475657397,22.56949404,206.02,205.93,22.56949404]
[1731475657592,4.8531,206.05,205.98,22.56949404]
[1731475657800,4.8528,206.07,205.98,22.56949404]
[1731475658097,4.8528,206.07,206.0,22.56949404]
[1731475658419,23.776884,206.06,205.98,22.56949404]
[1731475658595,22.56949404,206.06,205.98,22.56949404]
[1731475658794,4.8528,206.07,205.98,334.56949404]
[1731475659621,4.8528,206.07,205.98,338.45329404]
[1731475660301,23.776884,206.09,206.01,22.56949404]
[1731475660825,46.34637804,206.09,206.01,22.56949404]
[1731475661507,4.8524,206.08,206.01,22.56949404]
[1731475661820,4.8524,206.08,206.0,3.8834]
[1731475662016,22.56949404,206.07,206.0,3.8834]
[1731475662192,22.56949404,206.07,205.99,28.87419404]
[1731475663200,4.8524,206.08,206.01,22.56949404]
[1731475663521,23.776884,206.07,205.99,350.58339404]
[1731475663700,4.8524,206.08,206.01,22.56949404]
[1731475664805,4.851,206.14,206.05,22.56949404]
[1731475665001,42.99599404,206.15,206.07,22.56949404]
[1731475665230,27.42039404,206.15,206.07,22.56949404]
[1731475666934,27.42039404,206.15,206.07,334.56949404]
[1731475667704,22.56949404,206.11,206.01,33.49119404]
[1731475667906,22.56949404,206.09,206.01,33.49119404]
[1731475668125,23.776884,206.08,206.01,22.56949404]
[1731475668509,22.56949404,206.11,206.01,22.56949404]
[1731475668710,23.776884,206.12,206.03,22.56949404]
[1731475669226,22.56949404,206.09,206.0,10.9223]
[1731475669427,22.56949404,206.09,206.01,22.56949404]
[1731475669628,22.56949404,206.11,206.01,22.56949404]
[1731475669814,4.852,206.1,206.01,26.93799404]
[1731475670730,4.852,206.1,206.01,338.93799404]
[1731475671026,5.69485565,206.09,206.01,338.93799404]
[1731475671206,5.69485565,206.09,206.01,26.93799404]
[1731475672805,28.26434969,206.09,206.01,22.56949404]
[1731475673419,22.56949404,206.07,205.99,21.8653]
[1731475673836,22.56949404,206.03,205.89,22.09012662]
[1731475674134,22.56949404,206.03,205.93,22.56949404]
[1731475674430,22.56949404,206.03,205.95,22.56949404]
[1731475674734,22.56949404,206.03,205.9,37.86779404]
[1731475674735,23.776884,206.06,205.97,28.91989404]
[1731475674919,23.776884,206.06,205.97,33.28939404]
[1731475674920,4.8531,206.05,205.97,33.28939404]
[1731475675305,27.42259404,206.05,205.97,28.91989404]
[1731475675508,27.42259404,206.05,205.97,6.3504]
[1731475676310,23.776884,206.02,205.97,6.3504]
[1731475676509,22.56949404,206.01,205.97,6.3504]
[1731475676826,22.56949404,206.01,205.93,26.93969404]
[1731475677034,4.8543,206.0,205.93,22.56949404]
[1731475677934,4.8543,206.0,205.93,334.56949404]
[1731475678327,4.8543,206.0,205.93,312.0]
[1731475678829,22.56949404,205.99,205.93,312.0]
[1731475679021,22.56949404,205.99,205.92,6.3504]
[1731475679227,22.56949404,205.93,205.85,6.3504]
[1731475679650,22.56949404,205.91,205.85,6.3504]
[1731475679943,22.56949404,205.89,205.85,6.3504]
[1731475680132,46.34637804,205.89,205.77,33.50389404]
[1731475680441,22.56949404,205.89,205.82,4.3726]
[1731475680617,22.56949404,205.91,205.83,26.94179404]
[1731475680836,22.56949404,205.93,205.84,4.3721]
[1731475681147,28.632184,205.96,205.87,26.94099404]
[1731475681346,22.56949404,205.97,205.89,22.56949404]
[1731475681563,4.8549,205.98,205.91,22.56949404]
[1731475682035,22.56949404,205.97,205.89,22.56949404]
[1731475682446,4.8549,205.98,205.89,26.94059404]
[1731475683750,0.2,206.01,205.88,0.490469]
[1731475684068,22.56949404,205.95,205.88,0.490469]
[1731475685949,4.8557,205.94,205.88,0.490469]
[1731475686351,4.8554,205.96,205.89,22.56949404]
[1731475686660,161.6,206.01,205.89,22.56949404]
[1731475686661,23.776884,205.98,205.89,22.56949404]
[1731475688339,4.855,205.97,205.89,22.56949404]
[1731475688529,4.855,205.97,205.89,4.3712]
[1731475688757,4.8546,205.99,205.91,22.56949404]
[1731475689247,184.16949404,206.01,205.91,22.56949404]
[1731475689248,189.02369404,206.01,205.91,22.56949404]
[1731475689545,189.02369404,206.01,205.91,334.56949404]
[1731475689921,23.776884,206.0,205.91,334.56949404]
[1731475690324,4.8546,205.99,205.91,338.94019404]
[1731475691227,5.69747973,205.99,205.91,338.94019404]
[1731475691847,0.84287973,205.99,205.95,22.56949404]
[1731475692157,22.56949404,206.07,205.97,22.56949404]
[1731475692340,0.84267009,206.04,205.97,22.56949404]
[1731475692838,22.56949404,206.13,206.03,22.56949404]
[1731475693044,22.56949404,206.15,206.06,22.56949404]
[1731475693221,0.84236701,206.13,206.06,28.77019404]
[1731475693737,4.8515,206.12,206.06,28.77019404]
[1731475693940,22.56949404,206.11,206.06,6.2007]
[1731475694138,22.56949404,206.09,206.06,6.2007]
[1731475694324,22.56949404,206.11,206.06,6.2007]
[1731475694735,23.776884,206.1,206.06,6.2007]
[1731475695847,4.8522,206.09,206.06,6.2007]
[1731475696225,23.41186105,206.13,206.06,6.2007]
[1731475696545,22.56949404,206.11,206.06,6.2007]
[1731475696844,5.69376701,206.13,206.02,6.6524]
[1731475696845,22.56949404,206.07,206.02,6.6524]
[1731475697048,22.56949404,206.05,205.98,16.3534]
[1731475697263,22.56949404,206.01,205.96,6.6524]
[1731475697427,22.56949404,206.03,205.96,6.6524]
[1731475697621,22.56949404,206.01,205.96,6.6524]
[1731475698032,4.8543,206.0,205.96,6.6524]
[1731475698643,22.56949404,206.03,205.96,6.6524]
[1731475698926,4.8525,206.08,206.0,22.56949404]
[1731475699333,4.8525,206.08,206.0,334.56949404]
[1731475700039,4.8525,206.08,206.02,22.56949404]
[1731475700550,4.8521,206.1,206.02,22.56949404]
[1731475701622,4.8521,206.1,206.03,19.9171]
[1731475702228,22.56949404,206.09,206.03,15.5489]
[1731475702642,22.56949404,206.09,206.01,15.2902]
[1731475703428,4.8524,206.08,206.01,15.2902]
[1731475704126,4.8524,206.08,206.01,10.9217]
[1731475705023,4.8524,206.08,206.01,15.2904]
[1731475706154,0.84236701,206.13,206.04,22.56949404]
[1731475706155,23.41186105,206.13,206.04,22.56949404]
[1731475706854,28.26316105,206.13,206.04,334.56949404]
[1731475707251,22.56949404,206.11,206.04,312.0]
[1731475707634,27.42129404,206.11,206.04,316.368]
[1731475708235,27.42129404,206.11,206.04,312.0]
[1731475708236,22.56949404,206.09,206.04,312.0]
[1731475708447,22.56949404,206.09,206.03,6.2751]
[1731475709629,4.8524,206.08,206.03,6.2751]
[1731475709828,0.84236701,206.13,206.06,22.56949404]
[1731475710052,22.56949404,206.16,206.06,22.56949404]
[1731475710262,22.56949404,206.16,206.08,22.56949404]
[1731475711331,4.8508,206.15,206.08,334.56949404]
[1731475711748,4.8508,206.15,206.08,338.93669404]
[1731475711955,4.8504,206.17,206.1,37.83469404]
[1731475712330,4.85,206.19,206.11,6.0184]
[1731475712640,4.85,206.19,206.13,22.56949404]
[1731475712837,22.56949404,206.18,206.11,6.0184]
[1731475713745,4.8506,206.16,206.11,6.0184]
[1731475714353,4.8487,206.24,206.14,22.56949404]
[1731475714662,22.56949404,206.22,206.14,22.56949404]
[1731475715155,27.41819404,206.24,206.14,22.56949404]
[1731475715361,27.41819404,206.24,206.14,334.56949404]
[1731475715553,23.776884,206.23,206.14,334.56949404]
[1731475715935,28.625984,206.23,206.14,349.85019404]
[1731475716842,28.625984,206.23,206.16,22.56949404]
[1731475717369,23.776884,206.26,206.18,22.56949404]
[1731475717540,23.776884,206.26,206.2,22.56949404]
[1731475717871,22.56949404,206.24,206.16,37.84859404]
[1731475718070,46.34637804,206.26,206.16,37.84859404]
[1731475718538,4.8484,206.25,206.16,37.84859404]
[1731475718740,4.8484,206.25,206.16,22.56949404]
[1731475718741,46.34637804,206.24,206.16,22.56949404]
[1731475719342,4.8484,206.25,206.2,22.56949404]
[1731475719740,0.84189394,206.28,206.2,22.56949404]
[1731475719741,4.8483,206.26,206.2,22.56949404]
[1731475720147,4.8483,206.26,206.18,22.56949404]
[1731475720469,22.56949404,206.25,206.16,22.56949404]
[1731475720645,4.8487,206.24,206.16,22.56949404]
[1731475720847,4.8487,206.24,206.16,26.93499404]
[1731475721042,4.8487,206.24,206.16,22.56949404]
[1731475721353,4.8487,206.24,206.16,26.93489404]
[1731475721947,4.8487,206.24,206.16,22.56949404]
[1731475722146,23.776884,206.25,206.18,22.56949404]
[1731475722758,23.776884,206.26,206.18,22.56949404]
[1731475722961,28.625084,206.26,206.18,22.56949404]
[1731475723139,22.56949404,206.25,206.18,22.56949404]
[1731475723645,23.776884,206.24,206.18,22.56949404]
[1731475724565,23.776884,206.24,206.16,15.2792]
[1731475724566,23.776884,206.24,206.16,37.84869404]
[1731475724765,4.8489,206.23,206.16,37.84869404]
[1731475724964,4.8489,206.23,206.16,22.56949404]
[1731475725564,4.8489,206.23,206.12,33.48519404]
[1731475725565,22.56949404,206.2,206.12,33.48519404]
[1731475725767,22.56949404,206.18,206.11,6.0184]
[1731475726250,22.56949404,206.16,206.11,6.0184]
[1731475726449,23.776884,206.17,206.11,6.0184]
[1731475726962,4.8506,206.16,206.11,6.0184]
[1731475727656,23.776884,206.19,206.11,6.0184]
[1731475727966,4.8502,206.18,206.12,22.56949404]
[1731475728153,4.8498,206.2,206.12,22.56949404]
[1731475728344,4.8498,206.2,206.14,22.56949404]
[1731475728868,27.41769404,206.26,206.18,22.56949404]
[1731475729376,5.68979394,206.28,206.22,22.56949404]
[1731475729671,5.68979394,206.28,206.22,29.10279404]
[1731475730167,5.68979394,206.28,206.22,6.5333]
[1731475730577,5.68979394,206.28,206.22,29.10279404]
[1731475732073,5.68979394,206.28,206.22,341.10279404]
[1731475732678,5.68979394,206.28,206.22,345.46699404]
[1731475732878,5.68979394,206.28,206.24,22.56949404]
[1731475733958,5.68979394,206.28,206.22,341.10279404]
[1731475734973,5.68979394,206.28,206.22,29.10279404]
[1731475735175,0.84189394,206.28,206.22,29.10279404]
[1731475735355,5.68969394,206.28,206.22,33.46699404]
[1731475735562,51.19267804,206.34,206.24,22.56949404]
[1731475735858,0.84156885,206.31,206.24,22.56949404]
[1731475736681,4.8473,206.3,206.24,22.56949404]
[1731475738181,4.8473,206.3,206.24,334.56949404]
[1731475738472,0.84156885,206.31,206.26,22.56949404]
[1731475738675,5.68866885,206.31,206.26,22.56949404]
[1731475739665,0.84156885,206.31,206.26,22.56949404]
[1731475740380,4.8468,206.32,206.26,22.56949404]
[1731475741458,27.41629404,206.32,206.22,29.10279404]
[1731475741657,27.41629404,206.32,206.22,341.10279404]
[1731475742157,22.56949404,206.3,206.22,341.10279404]
[1731475742363,22.56949404,206.26,206.18,29.20529404]
[1731475743183,23.776884,206.25,206.18,6.6358]
[1731475743376,23.776884,206.23,206.18,6.6358]
[1731475743684,22.56949404,206.22,206.14,22.56949404]
[1731475744492,28.625784,206.23,206.14,22.56949404]
[1731475744676,22.56949404,206.22,206.14,22.56949404]
[1731475744876,22.56949404,206.2,206.12,22.56949404]
[1731475745091,22.56949404,206.18,206.1,22.56949404]
[1731475745882,23.776884,206.21,206.14,22.56949404]
[1731475746079,23.776884,206.21,206.12,22.56949404]
[1731475746282,22.56949404,206.2,206.12,22.56949404]
[1731475746484,22.56949404,206.16,206.08,28.64409404]
[1731475746669,23.776884,206.15,206.08,22.56949404]
[1731475747178,23.776884,206.17,206.1,22.56949404]
[1731475747872,4.8506,206.16,206.1,22.56949404]
[1731475748270,24.2479,206.21,206.05,26.4447]
[1731475748271,22.56949404,206.22,206.14,22.56949404]
[1731475748890,22.56949404,206.22,206.14,334.56949404]
[1731475749389,4.8498,206.2,206.14,334.56949404]
[1731475751074,4.8493,206.22,206.16,22.56949404]
[1731475751278,22.56949404,206.24,206.16,22.56949404]
[1731475751479,22.56949404,206.26,206.18,22.56949404]
[1731475752291,27.41769404,206.26,206.18,22.56949404]
[1731475752876,27.41629404,206.32,206.24,22.56949404]
[1731475753087,0.84152818,206.33,206.28,22.56949404]
[1731475753296,22.56949404,206.38,206.3,22.56949404]
[1731475753600,5.68706506,206.37,206.3,22.56949404]
[1731475753900,0.84136506,206.37,206.32,22.56949404]
[1731475754115,27.41399404,206.42,206.34,22.56949404]
[1731475754392,5.68557936,206.42,206.34,334.56949404]
[1731475754773,28.2550734,206.42,206.34,334.56949404]
[1731475755188,27.41459404,206.4,206.34,312.0]
[1731475755571,4.8451,206.4,206.34,312.0]
[1731475756183,0.84107936,206.42,206.36,22.56949404]
[1731475756388,22.56949404,206.46,206.38,22.56949404]
[1731475757391,4.8438,206.45,206.38,22.56949404]
[1731475757590,22.56949404,206.44,206.37,6.1446]
[1731475758714,22.56949404,206.44,206.29,0.1]
[1731475758715,22.56949404,206.4,206.32,22.56949404]
[1731475758904,22.56949404,206.42,206.34,22.56949404]
[1731475759377,4.8447,206.41,206.34,334.56949404]
[1731475760208,4.8447,206.41,206.34,22.56949404]
[1731475760511,4.8447,206.41,206.32,22.56949404]
[1731475760806,22.56949404,206.36,206.31,6.1446]
[1731475761183,22.56949404,206.38,206.31,6.1446]
[1731475761499,4.8456,206.37,206.31,6.1446]
[1731475765586,22.56949404,206.42,206.32,22.56949404]
[1731475766689,4.8447,206.41,206.32,22.56949404]
[1731475767104,46.34637804,206.4,206.32,22.56949404]
[1731475767405,22.56949404,206.38,206.31,6.1446]
[1731475768700,4.8456,206.37,206.31,6.1446]
[1731475768899,23.776884,206.36,206.31,6.1446]
[1731475770094,4.8456,206.37,206.31,6.1446]
[1731475771609,14.07564832,206.33,206.26,22.052]
[1731475772014,23.776884,206.34,206.26,36.12764832]
[1731475773010,14.07564832,206.33,206.26,22.052]
[1731475773309,14.07564832,206.33,206.26,6.0266]
[1731475773715,4.8468,206.32,206.26,6.0266]
[1731475774209,23.776884,206.31,206.26,6.0266]
[1731475774411,4.8468,206.32,206.26,20.10224832]
[1731475775511,4.8468,206.32,206.26,6.0266]
[1731475776515,23.776884,206.31,206.26,6.0266]
[1731475777014,0.84164942,206.3,206.26,6.0266]
[1731475777803,4.8475,206.29,206.26,6.0266]
[1731475778089,14.07564832,206.37,206.28,14.07564832]
[1731475778292,0.84140367,206.35,206.28,14.07564832]
[1731475779319,4.8463,206.34,206.28,326.07564832]
[1731475779700,4.8463,206.34,206.28,312.0]
[1731475779918,4.8463,206.34,206.26,20.10224832]
[1731475780104,14.07564832,206.33,206.26,6.0266]
[1731475781113,0.84140367,206.35,206.26,20.10224832]
[1731475781297,0.84140367,206.35,206.3,14.07564832]
[1731475782315,5.68750367,206.35,206.3,30.70104832]
[1731475782618,5.68750367,206.35,206.28,14.07564832]
[1731475782795,0.84140367,206.35,206.3,14.07564832]
[1731475782994,0.84140367,206.35,206.3,326.07564832]
[1731475783204,5.68750367,206.35,206.3,326.07564832]
[1731475783496,12.112,206.41,206.26,6.0266]
[1731475783497,12.112,206.41,206.33,14.07564832]
[1731475783697,28.621784,206.4,206.33,14.07564832]
[1731475783898,0.8413331,206.38,206.33,14.07564832]
[1731475785116,4.8456,206.37,206.33,14.07564832]
[1731475786110,0.8413331,206.38,206.33,14.07564832]
[1731475786309,14.07564832,206.37,206.3,6.3728]
[1731475786612,14.07564832,206.35,206.3,6.3728]
[1731475787621,14.07564832,206.33,206.24,35.72154832]
[1731475787814,14.07564832,206.33,206.24,20.44844832]
[1731475788009,14.175648,206.38,206.24,20.44844832]
[1731475788010,14.07564832,206.31,206.24,6.3728]
[1731475788319,14.07564832,206.29,206.24,6.3728]
[1731475788530,4.8473,206.3,206.24,6.3728]
[1731475788717,23.776884,206.34,206.26,14.07564832]
[1731475789534,23.776884,206.34,206.26,326.07564832]
[1731475789707,23.776884,206.34,206.26,14.07564832]
[1731475790026,18.92224832,206.33,206.26,14.07564832]
[1731475790228,4.8466,206.33,206.26,14.07564832]
[1731475790904,18.92194832,206.35,206.26,29.34734832]
[1731475791105,4.8463,206.35,206.28,14.07564832]
[1731475792423,14.07564832,206.35,206.28,14.07564832]
[1731475792617,14.07564832,206.35,206.28,326.07564832]
[1731475793521,14.07564832,206.35,206.26,14.07564832]
[1731475793719,14.07564832,206.33,206.24,20.44844832]
[1731475794830,18.92194832,206.35,206.26,14.07564832]
[1731475795719,14.07564832,206.33,206.24,35.72174832]
[1731475796236,4.8468,206.32,206.24,35.72174832]
[1731475796527,4.8468,206.32,206.26,312.0]
[1731475796731,14.07564832,206.31,206.24,6.3728]
[1731475796913,14.07564832,206.29,206.24,6.3728]
[1731475798109,14.07564832,206.29,206.2,14.07564832]
[1731475798303,28.624584,206.28,206.2,14.07564832]
[1731475798911,14.07564832,206.27,206.19,6.3108]
[1731475799610,14.07564832,206.27,206.19,318.3108]
[1731475800028,4.8482,206.26,206.19,318.3108]
[1731475800314,14.07564832,206.21,206.15,6.2665]
[1731475800736,14.07564832,206.25,206.16,14.07564832]
[1731475800907,4.8468,206.32,206.22,14.07564832]
[1731475801104,4.8468,206.32,206.15,6.2665]
[1731475801105,18.92244832,206.32,206.24,14.07564832]
[1731475801535,18.92244832,206.32,206.22,14.07564832]
[1731475801736,14.07564832,206.3,206.22,14.07564832]
[1731475801943,4.8475,206.29,206.22,14.07564832]
[1731475802236,4.8461,206.35,206.28,14.07564832]
[1731475802419,14.07564832,206.3,206.23,16.0767]
[1731475802740,14.07564832,206.28,206.21,6.5785]
[1731475802936,14.07564832,206.24,206.16,20.65414832]
[1731475803141,14.07564832,206.22,206.16,6.5785]
[1731475803337,14.07564832,206.24,206.16,20.65414832]
[1731475803546,14.07564832,206.28,206.2,14.07564832]
[1731475803722,14.07564832,206.26,206.18,14.07564832]
[1731475804116,23.776884,206.27,206.16,17.4923]
[1731475804117,14.07564832,206.24,206.16,35.93344832]
[1731475804343,14.07564832,206.24,206.16,31.56794832]
[1731475804714,14.07564832,206.24,206.16,6.5785]
[1731475805132,14.07564832,206.22,206.16,6.5785]
[1731475805369,4.8475,206.29,206.2,14.07564832]
[1731475805532,18.92314832,206.29,206.2,14.07564832]
[1731475806230,18.92314832,206.29,206.2,29.35194832]
[1731475806440,4.8475,206.29,206.22,14.07564832]
[1731475806945,4.8475,206.29,206.23,312.0]
[1731475807146,0.84156972,206.3,206.24,14.07564832]
[1731475807316,14.07564832,206.27,206.17,20.0]
[1731475807650,14.07564832,206.23,206.16,6.5785]
[1731475808043,14.07564832,206.21,206.13,15.7617]
[1731475808422,14.07564832,206.19,206.12,14.07564832]
[1731475808627,23.776884,206.18,206.11,6.101]
[1731475809044,20.0,206.2,206.12,14.07564832]
[1731475809251,4.8491,206.22,206.16,14.07564832]
[1731475809457,14.07564832,206.27,206.18,14.07564832]
[1731475809626,23.776884,206.26,206.18,14.07564832]
[1731475809944,14.07564832,206.25,206.18,14.07564832]
[1731475810126,4.8487,206.24,206.18,14.07564832]
[1731475810324,4.8484,206.26,206.18,326.07564832]
[1731475810748,4.8484,206.26,206.21,22.5401661]
[1731475811151,4.8484,206.26,206.18,16.0752]
[1731475811152,4.8484,206.26,206.19,22.5401661]
[1731475811356,4.8484,206.26,206.18,16.0752]
[1731475811846,5.68896972,206.3,206.23,22.5401661]
[1731475812046,0.84156972,206.3,206.25,22.5401661]
[1731475812545,0.84156972,206.3,206.27,22.5401661]
[1731475812725,21.62239905,206.38,206.27,22.5401661]
[1731475812726,4.8464,206.34,206.27,22.5401661]
[1731475813252,27.3865661,206.34,206.25,22.5401661]
[1731475813642,4.8464,206.34,206.27,22.5401661]
[1731475813821,4.8464,206.34,206.27,334.5401661]
[1731475814027,22.5401661,206.38,206.29,22.5401661]
[1731475814222,22.5401661,206.4,206.31,22.5401661]
[1731475814427,41.9206461,206.42,206.33,22.5401661]
[1731475815035,41.9206461,206.42,206.31,22.5401661]
[1731475815238,41.9206461,206.42,206.29,6.3304]
[1731475815239,22.5401661,206.36,206.29,6.3304]
[1731475815548,22.5401661,206.34,206.29,6.3304]
[1731475815740,27.3851661,206.4,206.23,16.6396]
[1731475815741,22.5401661,206.3,206.23,45.7967661]
[1731475815926,22.5401661,206.3,206.23,6.617]
[1731475816322,22.5401661,206.28,206.23,6.617]
[1731475816727,22.5401661,206.3,206.23,6.617]
[1731475818247,4.8468,206.32,206.25,22.5401661]
[1731475818427,2.0334,206.43,206.29,22.5401661]
[1731475818630,22.5401661,206.4,206.31,22.5401661]
[1731475818888,22.5401661,206.44,206.36,6.617]
[1731475819036,22.5401661,206.46,206.37,22.5401661]
[1731475819938,4.8433,206.47,206.39,22.5401661]
[1731475820133,4.8425,206.51,206.43,22.5401661]
[1731475820327,4.8425,206.51,206.45,22.5401661]
[1731475820527,4.8425,206.51,206.43,22.5401661]
[1731475821339,4.8425,206.51,206.43,334.5401661]
[1731475821842,22.5401661,206.52,206.43,334.5401661]
[1731475821843,22.5401661,206.52,206.45,22.5401661]
[1731475822041,45.5457287,206.58,206.47,22.5401661]
[1731475822042,41.9080441,206.54,206.47,22.5401661]
[1731475822442,22.5401661,206.54,206.47,22.5401661]
[1731475823466,27.3819661,206.54,206.47,22.5401661]
[1731475824165,27.3819661,206.54,206.45,22.5401661]
[1731475824957,27.3819661,206.54,206.45,334.5401661]
[1731475824958,22.5401661,206.52,206.45,334.5401661]
[1731475825139,22.5401661,206.52,206.45,22.5401661]
[1731475825529,22.5401661,206.52,206.42,4.3599]
[1731475825530,4.8423,206.51,206.43,22.5401661]
[1731475826241,4.8423,206.51,206.41,15.7555]
[1731475826242,22.5401661,206.5,206.41,38.2956661]
[1731475826639,22.5401661,206.5,206.38,10.9019]
[1731475826640,22.5401661,206.46,206.37,22.5401661]
[1731475827464,4.8437,206.45,206.37,22.5401661]
[1731475827657,22.5401661,206.46,206.37,37.8038661]
[1731475828036,27.3837661,206.46,206.37,349.8038661]
[1731475828636,27.3837661,206.46,206.37,334.5401661]
[1731475828637,23.776884,206.45,206.37,334.5401661]
[1731475828843,22.5401661,206.44,206.36,6.617]
[1731475829151,0.1,206.55,206.37,22.5401661]
[1731475829333,22.5401661,206.53,206.43,22.5401661]
[1731475829541,27.3816661,206.55,206.47,22.5401661]
[1731475829737,22.5401661,206.55,206.47,22.5401661]
[1731475829965,22.5401661,206.57,206.49,22.5401661]
[1731475831139,27.3811661,206.57,206.49,26.8985661]
[1731475831945,27.3811661,206.57,206.49,338.8985661]
[1731475833244,22.5401661,206.54,206.49,312.0]
[1731475833437,22.5401661,206.52,206.47,6.5389]
[1731475834143,22.5401661,206.54,206.47,6.5389]
[1731475834453,22.5401661,206.54,206.47,10.8978]
[1731475834851,22.5401661,206.54,206.47,6.5389]
[1731475835161,22.5401661,206.54,206.47,29.0790661]
[1731475835462,27.3814661,206.56,206.47,44.3353661]
[1731475836352,27.3814661,206.56,206.47,356.3353661]
[1731475836546,10.0,206.58,206.51,22.5401661]
[1731475837754,14.8407,206.58,206.51,26.8981661]
[1731475837956,37.3808661,206.58,206.51,22.5401661]
[1731475839241,37.3808661,206.58,206.51,26.8981661]
[1731475839957,37.3808661,206.58,206.51,338.8981661]
[1731475840766,0.83933012,206.57,206.51,338.8981661]
[1731475841063,5.68033012,206.57,206.51,338.8981661]
[1731475841368,22.5401661,206.56,206.47,33.4378661]
[1731475841550,22.5401661,206.54,206.47,29.0790661]
[1731475841748,22.5401661,206.54,206.47,6.5389]
[1731475842268,22.5401661,206.52,206.47,6.5389]
[1731475842886,4.8423,206.51,206.47,6.5389]
[1731475843048,22.5401661,206.5,206.42,16.4507]
[1731475843448,22.5401661,206.48,206.42,16.4507]
[1731475843766,22.5401661,206.48,206.4,6.563]
[1731475843968,22.5401661,206.46,206.4,6.563]